bitfinex-derivatives/quotes_ETHF0:USTF0_20241017
["timestamp","ask_amount","ask_price","bid_price","bid_amount"]
[1729164445347,3.8392,2604.6,2604.1,3.2078]
[1729164445560,3.8392,2604.6,2604.1,3.609]
[1729164445561,0.4274,2604.5,2604.1,3.609]
[1729164445749,0.38409,2604.2,2604.1,3.99309]
[1729164446054,0.38407,2604.4,2604.3,0.38406]
[1729164446552,1.2323,2604.8,2604.4,0.38405]
[1729164446553,0.38405,2604.5,2604.4,0.38405]
[1729164446753,0.38405,2604.5,2604.1,4.56926]
[1729164446754,0.38404,2604.6,2604.5,0.38403]
[1729164447156,4.22324,2604.6,2604.5,0.38403]
[1729164447358,0.38404,2604.6,2604.5,0.38403]
[1729164448262,0.38406,2604.5,2604.4,0.38405]
[1729164448649,0.38404,2604.6,2604.5,0.38403]
[1729164449257,0.38406,2604.5,2604.4,0.38405]
[1729164450455,0.38406,2604.4,2604.3,0.38405]
[1729164451754,0.38406,2604.5,2604.4,0.38405]
[1729164453249,2.19231,2604.8,2604.4,0.38405]
[1729164453547,0.38404,2604.6,2604.5,0.38403]
[1729164453758,0.38407,2604.4,2604.3,0.38405]
[1729164453954,0.38405,2604.5,2604.4,0.38405]
[1729164454153,0.38407,2604.4,2604.3,0.38406]
[1729164455455,10.0478,2604.4,2603.5,4.69673515]
[1729164455653,0.38414,2603.9,2603.6,0.7899]
[1729164455857,0.38415,2603.8,2603.7,0.38415]
[1729164456057,3.2078,2604.1,2603.6,0.7899]
[1729164456254,0.38414,2603.9,2603.8,0.38414]
[1729164456454,0.38415,2603.8,2603.7,0.38415]
[1729164456659,0.38416,2603.7,2603.6,1.17406]
[1729164456966,0.38416,2603.7,2603.6,0.7899]
[1729164457160,3.59196,2603.7,2603.6,0.7899]
[1729164458063,0.38419,2603.5,2603.4,0.3842]
[1729164458864,3.2078,2603.7,2603.5,0.38418]
[1729164458865,0.38419,2603.6,2603.5,0.38418]
[1729164459765,0.38417,2603.8,2603.7,0.38415]
[1729164459967,0.38414,2603.9,2603.8,0.38413]
[1729164460270,0.38414,2603.9,2603.8,0.79953]
[1729164460455,0.38411,2604.1,2604.0,0.3841]
[1729164461858,1.2133,2604.5,2603.9,3.0]
[1729164462063,0.38409,2604.2,2604.1,0.3841]
[1729164463371,2.17342,2604.5,2604.2,0.38408]
[1729164463372,0.38408,2604.3,2604.2,0.38408]
[1729164463771,0.38407,2604.4,2604.3,0.38406]
[1729164464072,0.38408,2604.3,2604.2,0.38408]
[1729164468467,0.38406,2604.4,2604.3,0.38406]
[1729164468767,3.2078,2605.0,2604.4,0.96015]
[1729164468967,0.38399,2604.9,2604.8,0.38399]
[1729164469164,0.38399,2604.9,2604.5,0.4066]
[1729164469165,0.38401,2604.8,2604.7,0.38401]
[1729164469364,0.38399,2604.9,2604.8,0.38398]
[1729164469566,4.0245,2605.3,2604.7,7.16783]
[1729164469762,0.38395,2605.2,2605.1,0.38394]
[1729164470168,0.4014,2605.3,2604.9,3.0]
[1729164470376,0.38392,2605.4,2605.3,0.38392]
[1729164470676,41.1839,2605.5,2605.4,0.3839]
[1729164470973,3.39944921,2605.6,2605.3,0.38392]
[1729164470974,0.38392,2605.4,2605.3,0.38392]
[1729164471179,0.38391,2605.5,2605.3,0.38391]
[1729164471480,0.38389,2605.5,2605.1,3.4277]
[1729164471670,0.38392,2605.4,2605.3,0.38392]
[1729164471872,0.3839,2605.5,2605.4,0.38391]
[1729164472075,0.38385,2605.8,2605.7,0.38386]
[1729164472266,5.0844,2606.5,2605.9,0.38383]
[1729164472267,3.2078,2606.3,2605.9,0.38383]
[1729164472471,0.3838,2606.2,2606.0,0.38381]
[1729164472776,0.38383,2606.0,2605.8,0.79455]
[1729164473172,0.38382,2606.1,2605.9,0.38383]
[1729164473371,0.38378,2606.3,2605.9,0.38383]
[1729164473574,0.38382,2606.1,2605.9,0.38383]
[1729164473773,1.248,2606.4,2605.9,0.38383]
[1729164474083,0.38382,2606.0,2605.9,0.38383]
[1729164474278,0.38381,2606.1,2605.9,0.38383]
[1729164474969,42.048,2606.4,2605.9,0.38383]
[1729164475165,3.95949,2606.2,2605.4,3.2078]
[1729164475373,0.38389,2605.6,2605.4,0.3839]
[1729164475580,0.95957,2606.0,2605.3,0.3911]
[1729164475879,0.95957,2606.0,2605.4,0.38391]
[1729164475880,0.3839,2605.5,2605.4,0.38391]
[1729164477172,6.6207,2605.9,2605.3,0.3911]
[1729164477376,3.2078,2605.6,2605.1,3.2078]
[1729164477587,0.38394,2605.2,2605.1,3.2078]
[1729164481780,0.398,2605.4,2605.1,3.2078]
[1729164481982,0.3859,2605.8,2605.3,3.0]
[1729164482280,0.3859,2605.8,2605.4,0.3944]
[1729164482472,0.38389,2605.5,2605.4,0.7783]
[1729164482672,0.38389,2605.6,2605.4,0.3944]
[1729164482888,0.38389,2605.6,2605.5,0.38389]
[1729164483084,0.38389,2605.6,2605.4,0.7783]
[1729164483388,0.3859,2605.8,2605.5,0.38389]
[1729164483584,0.3859,2605.8,2605.4,0.7783]
[1729164483779,0.38389,2605.6,2605.5,0.38389]
[1729164483981,0.38389,2605.5,2605.4,0.7783]
[1729164484381,3.0,2606.2,2605.4,7.4406]
[1729164484382,0.95949,2606.2,2605.4,7.4406]
[1729164484580,0.38387,2605.7,2605.5,0.4007]
[1729164484784,0.95949,2606.2,2605.5,0.4007]
[1729164485088,0.38388,2605.6,2605.5,0.78459]
[1729164485593,0.3878,2605.9,2605.5,0.4007]
[1729164485794,0.38388,2605.6,2605.5,0.78458]
[1729164486295,0.3878,2605.9,2605.5,0.4007]
[1729164486488,0.38388,2605.6,2605.5,0.78459]
[1729164489088,3.6017,2606.3,2605.6,0.95971]
[1729164489294,0.3838,2606.2,2606.1,0.38379]
[1729164489587,0.3838,2606.2,2605.9,3.2078]
[1729164489588,0.38379,2606.3,2606.2,0.38378]
[1729164490093,0.38378,2606.3,2606.2,0.38378]
[1729164490294,0.95933,2606.7,2606.2,3.0]
[1729164490785,0.38375,2606.5,2606.4,0.38375]
[1729164491187,40.8,2606.6,2606.2,3.0]
[1729164491389,0.38377,2606.4,2606.3,0.38377]
[1729164491795,40.8,2606.6,2606.2,3.0]
[1729164491987,0.38379,2606.2,2606.1,0.4235]
[1729164492185,0.95938,2606.5,2605.9,3.2078]
[1729164492186,0.95945,2606.3,2605.9,3.2078]
[1729164492382,0.38385,2605.8,2605.7,0.3953]
[1729164492582,3.8116,2606.2,2605.3,6.6334]
[1729164492788,6.5983,2606.0,2605.4,0.3953]
[1729164492991,0.38389,2605.5,2605.4,0.7792]
[1729164493386,0.38389,2605.5,2605.4,0.3953]
[1729164493786,6.2078,2605.7,2605.3,0.4256]
[1729164493987,0.38391,2605.4,2605.3,0.4256]
[1729164494391,0.38392,2605.3,2605.2,3.2078]
[1729164494787,0.38398,2604.9,2604.8,0.4256]
[1729164494998,0.38398,2604.9,2604.8,0.8096]
[1729164495392,0.38398,2604.9,2604.8,0.80959]
[1729164497892,0.38398,2605.0,2604.9,0.38397]
[1729164498294,3.2078,2605.4,2604.8,0.4256]
[1729164498595,0.38396,2605.1,2605.0,0.38396]
[1729164498783,3.2078,2605.4,2604.9,7.16775]
[1729164498987,0.38394,2605.3,2605.2,3.38393]
[1729164499187,3.2078,2605.4,2605.2,3.38393]
[1729164499188,3.2078,2605.4,2605.3,0.38392]
[1729164499390,0.3839,2605.5,2605.4,0.38391]
[1729164499694,0.95964,2605.8,2605.4,0.38391]
[1729164499695,0.38388,2605.7,2605.6,0.38387]
[1729164500198,0.416,2605.9,2605.6,0.38387]
[1729164500396,0.416,2605.9,2605.4,3.4104]
[1729164500397,0.38386,2605.8,2605.7,0.38385]
[1729164500787,3.2078,2606.0,2605.4,3.4104]
[1729164501487,0.38387,2605.7,2605.6,0.38387]
[1729164501690,0.38389,2605.6,2605.5,0.38388]
[1729164501892,0.38389,2605.5,2605.4,0.4104]
[1729164502095,0.95965,2605.8,2605.3,0.80722]
[1729164502294,0.38391,2605.4,2605.3,0.80722]
[1729164502599,0.38391,2605.4,2605.3,0.4233]
[1729164502897,0.38391,2605.4,2605.0,0.4115]
[1729164502898,0.38395,2605.1,2605.0,0.4115]
[1729164503288,0.3971,2605.3,2604.9,0.3967]
[1729164503289,0.38397,2605.0,2604.9,0.3967]
[1729164503494,0.38398,2604.9,2604.8,3.2078]
[1729164503894,0.38398,2604.9,2604.8,3.5918]
[1729164504693,0.38398,2604.9,2604.8,3.2078]
[1729164504893,0.38401,2604.7,2604.6,0.4023]
[1729164505097,3.2078,2605.0,2604.4,0.3967]
[1729164505308,0.96003,2604.8,2604.2,0.38408]
[1729164505508,0.96008,2604.6,2604.1,3.4027]
[1729164505804,0.96008,2604.6,2604.1,0.4027]
[1729164506100,0.38409,2604.2,2604.1,0.7868]
[1729164507199,0.38409,2604.2,2604.1,0.4027]
[1729164507404,0.38413,2603.9,2603.8,1.18914]
[1729164507898,0.38412,2604.1,2604.0,0.38411]
[1729164508297,0.38412,2604.0,2603.9,0.38412]
[1729164508501,0.96012,2604.5,2604.0,0.3841]
[1729164508502,0.38411,2604.1,2604.0,0.3841]
[1729164511802,0.96012,2604.5,2604.1,0.3841]
[1729164512004,0.3841,2604.2,2604.1,0.3841]
[1729164512208,0.38408,2604.3,2604.2,0.38407]
[1729164512405,0.8019,2604.7,2604.2,3.69]
[1729164512593,0.38405,2604.5,2604.4,0.38405]
[1729164512799,0.4007,2604.7,2604.6,0.38403]
[1729164512800,0.78472,2604.7,2604.6,0.38403]
[1729164513005,5.51243,2605.0,2604.2,4.65021]
[1729164513202,0.38403,2604.6,2604.5,0.38403]
[1729164513994,0.38402,2604.7,2604.6,0.38402]
[1729164514213,0.38402,2604.7,2604.6,0.79342]
[1729164514596,0.38401,2604.8,2604.7,0.38401]
[1729164514807,0.4275,2605.0,2604.6,0.4094]
[1729164515106,0.38395,2605.2,2605.1,0.38395]
[1729164515303,0.38394,2605.2,2605.1,0.38394]
[1729164515696,1.36941,2605.6,2604.8,6.8978]
[1729164515697,0.4097,2605.6,2604.8,6.8978]
[1729164515897,0.4097,2605.6,2605.1,6.8978]
[1729164516105,4.125,2605.8,2605.3,3.69]
[1729164516307,42.16931,2605.9,2605.3,3.69]
[1729164516505,0.3839,2605.5,2605.4,0.3839]
[1729164517107,0.38388,2605.7,2605.6,0.38388]
[1729164517316,0.38386,2605.8,2605.7,0.38386]
[1729164517516,0.38386,2605.8,2605.7,0.38385]
[1729164517712,0.4097,2605.9,2605.4,3.2078]
[1729164517917,0.38389,2605.5,2605.4,3.2078]
[1729164518513,0.38398,2604.9,2604.8,3.2078]
[1729164519220,0.4059,2605.2,2604.9,0.38398]
[1729164519221,0.38397,2605.0,2604.9,0.38398]
[1729164519422,0.95967,2605.7,2604.9,3.69]
[1729164519614,0.4059,2605.6,2605.1,0.38394]
[1729164519814,0.38394,2605.3,2605.1,0.38394]
[1729164520018,0.38394,2605.3,2604.9,3.69]
[1729164520226,0.38394,2605.3,2604.7,1.38483]
[1729164520227,1.78818,2606.0,2605.2,3.69]
[1729164520517,0.38389,2605.6,2605.4,0.3839]
[1729164520711,0.95967,2605.7,2604.8,3.6077]
[1729164520912,0.38391,2605.4,2605.3,0.38392]
[1729164521223,0.38391,2605.4,2605.2,0.38393]
[1729164521423,0.38391,2605.4,2604.9,5.05106]
[1729164521424,4.16745,2605.8,2604.9,5.05106]
[1729164521621,0.38392,2605.4,2604.9,5.05106]
[1729164521812,0.38392,2605.3,2605.2,0.38394]
[1729164522220,0.95967,2605.7,2604.9,4.0911]
[1729164522523,0.38397,2605.0,2604.9,0.78507]
[1729164523728,0.38397,2605.0,2604.9,0.78508]
[1729164524224,0.38403,2604.7,2604.6,0.38402]
[1729164524426,4.79914,2605.0,2604.5,0.80944]
[1729164524427,0.38403,2604.6,2604.5,0.80944]
[1729164524718,0.38407,2604.4,2604.3,0.38406]
[1729164525113,0.4121,2604.8,2604.2,0.3975]
[1729164525317,0.79611,2604.8,2604.7,0.38401]
[1729164525528,0.384,2604.9,2604.8,0.38399]
[1729164525919,0.38398,2605.0,2604.9,0.38398]
[1729164526224,0.38398,2605.0,2604.9,0.38397]
[1729164526424,0.38398,2604.9,2604.6,0.38402]
[1729164526621,0.38403,2604.7,2604.6,0.38402]
[1729164527728,0.95995,2605.0,2604.4,3.6131]
[1729164528020,0.38404,2604.5,2604.4,0.78934]
[1729164528815,0.38408,2604.3,2604.2,0.38408]
[1729164529428,0.38408,2604.3,2604.1,3.2078]
[1729164529429,0.38407,2604.4,2604.3,0.38406]
[1729164529632,0.38404,2604.5,2604.4,0.38404]
[1729164530828,0.38404,2604.6,2604.5,0.38404]
[1729164531023,0.404,2604.7,2604.1,3.5996]
[1729164531231,0.38405,2604.5,2604.4,0.38404]
[1729164531825,0.404,2604.7,2604.4,0.38404]
[1729164532025,0.38402,2604.7,2604.6,0.38402]
[1729164532220,0.38403,2604.6,2604.5,0.77913]
[1729164532422,7.815,2605.3,2604.8,0.38399]
[1729164532423,0.38399,2604.9,2604.8,0.38399]
[1729164532727,0.38392,2605.3,2605.1,0.38395]
[1729164533025,3.2078,2605.4,2604.9,0.3856]
[1729164533226,3.2078,2605.4,2605.0,0.38396]
[1729164533227,0.38396,2605.1,2605.0,0.38396]
[1729164534024,0.38397,2605.0,2604.9,0.76958]
[1729164534223,0.38397,2605.0,2604.9,0.3856]
[1729164534425,0.95996,2605.0,2604.5,0.3951]
[1729164534635,0.38402,2604.7,2604.6,0.38402]
[1729164536037,0.38404,2604.5,2604.4,3.2078]
[1729164536823,0.38416,2603.7,2603.3,1.87314515]
[1729164537027,0.38417,2603.6,2603.3,0.38422]
[1729164537333,0.38417,2603.6,2603.4,0.3842]
[1729164537334,0.38418,2603.6,2603.4,0.3842]
[1729164537522,44.96813,2604.0,2603.1,0.8023]
[1729164537721,0.38419,2603.5,2603.3,0.38421]
[1729164537926,0.38419,2603.5,2603.1,0.8023]
[1729164538227,0.38421,2603.4,2603.2,0.38423]
[1729164538426,3.2078,2603.7,2603.1,0.8023]
[1729164538621,3.2078,2603.7,2603.2,0.38423]
[1729164538818,3.2078,2603.7,2603.1,0.8023]
[1729164539019,0.96044,2603.6,2603.0,3.2078]
[1729164539225,0.38424,2603.2,2603.1,0.38425]
[1729164539424,0.38424,2603.2,2603.0,3.2078]
[1729164539619,3.2078,2603.7,2603.2,0.38422]
[1729164539831,0.38422,2603.3,2603.0,3.2078]
[1729164540132,0.38423,2603.3,2603.1,0.38424]
[1729164540634,3.2078,2603.7,2603.2,0.38423]
[1729164540832,0.38422,2603.3,2603.0,3.2078]
[1729164541032,0.38422,2603.3,2603.1,0.38424]
[1729164541426,0.38422,2603.3,2603.0,3.2078]
[1729164541427,0.38422,2603.3,2603.2,0.38423]
[1729164541631,0.38422,2603.3,2603.1,0.38423]
[1729164541827,0.38423,2603.3,2603.2,0.38423]
[1729164542427,3.2078,2603.7,2603.0,3.2078]
[1729164542633,0.38424,2603.2,2603.1,0.38424]
[1729164543135,0.38424,2603.2,2603.1,4.22584]
[1729164543532,0.38424,2603.2,2603.1,0.38424]
[1729164543836,0.38424,2603.2,2603.1,4.22584]
[1729164544328,3.2078,2603.7,2603.1,3.8416]
[1729164544532,0.3842,2603.5,2603.4,0.3842]
[1729164545236,0.3842,2603.5,2603.4,4.225]
[1729164545533,0.38418,2603.6,2603.5,0.38418]
[1729164545727,0.96033,2604.0,2603.5,4.2424]
[1729164545728,3.2078,2604.0,2603.5,4.2424]
[1729164545936,0.38416,2603.8,2603.7,0.38415]
[1729164546232,0.96018,2604.4,2603.6,3.69]
[1729164546233,0.38414,2603.9,2603.6,3.69]
[1729164546431,0.38413,2604.0,2603.9,0.38412]
[1729164548728,0.38416,2603.8,2603.7,0.38415]
[1729164549439,0.96024,2604.2,2603.5,0.4016]
[1729164549632,0.96024,2604.2,2603.8,0.38414]
[1729164549633,0.38414,2603.9,2603.8,0.38414]
[1729164550830,0.38423,2603.3,2603.2,0.38422]
[1729164551031,3.2078,2603.4,2603.1,0.3919]
[1729164551226,0.38422,2603.3,2603.2,0.38423]
[1729164551430,0.38422,2603.3,2603.2,0.38422]
[1729164551630,0.38423,2603.3,2603.2,4.22583]
[1729164551837,3.2078,2603.8,2603.2,3.8416]
[1729164552037,3.2078,2603.5,2603.1,0.3919]
[1729164552233,0.38423,2603.3,2603.2,0.38423]
[1729164552641,0.38423,2603.3,2603.2,4.22583]
[1729164553048,0.38423,2603.3,2603.2,3.8416]
[1729164553844,0.38427,2603.0,2602.9,0.38427]
[1729164554147,0.38427,2603.0,2602.9,0.80028]
[1729164554346,0.38427,2603.0,2602.9,0.416]
[1729164554733,0.38427,2603.0,2602.9,0.80028]
[1729164555248,0.96057,2603.3,2603.2,0.38423]
[1729164555249,0.38423,2603.3,2603.2,0.38423]
[1729164555544,0.38423,2603.3,2603.2,0.38422]
[1729164555747,3.2078,2603.5,2602.9,3.6238]
[1729164555937,3.2078,2603.0,2601.9,1.00468599]
[1729164556135,3.2078,2602.6,2601.6,4.65118]
[1729164556342,0.38439,2602.2,2602.0,0.3844]
[1729164556536,3.2078,2602.6,2601.8,0.8278]
[1729164556852,4.16863,2602.6,2601.8,0.8278]
[1729164557051,4.16863,2602.6,2602.0,0.3844]
[1729164557346,0.3844,2602.1,2602.0,0.38441]
[1729164558141,0.3844,2602.1,2602.0,4.22761]
[1729164558345,0.3844,2602.1,2602.0,0.38441]
[1729164558852,0.3844,2602.1,2601.9,0.77831]
[1729164559149,0.38435,2602.4,2601.9,4.2371]
[1729164559344,0.38439,2602.2,2602.0,0.3844]
[1729164559546,3.2078,2602.6,2601.9,0.3939]
[1729164559847,3.2078,2602.6,2602.1,0.38439]
[1729164560047,0.38438,2602.3,2602.1,0.38439]
[1729164560252,0.38437,2602.3,2602.2,0.38438]
[1729164560450,0.38437,2602.3,2601.9,0.3939]
[1729164560451,0.38436,2602.4,2601.9,4.0839]
[1729164560756,3.2078,2602.6,2602.0,0.96103]
[1729164560957,0.38434,2602.5,2602.4,0.38435]
[1729164561151,3.2078,2602.6,2602.0,0.96103]
[1729164561353,3.59213,2602.6,2602.5,0.38434]
[1729164561851,0.38434,2602.5,2602.4,0.38435]
[1729164562055,3.2078,2603.0,2602.5,0.38432]
[1729164562259,0.38431,2602.7,2602.6,0.78062]
[1729164562462,0.38428,2602.9,2602.6,0.78061]
[1729164562749,0.38429,2602.8,2602.7,0.4277]
[1729164562961,0.38429,2602.8,2602.7,0.81201]
[1729164563353,0.38429,2602.8,2602.7,0.4277]
[1729164564559,0.38429,2602.8,2602.7,0.81201]
[1729164564960,0.38429,2602.8,2602.7,0.4277]
[1729164565259,0.38429,2602.8,2602.7,0.81201]
[1729164565459,0.38428,2602.9,2602.8,0.38428]
[1729164566763,3.2078,2603.0,2602.7,0.4277]
[1729164566966,3.59207,2603.0,2602.9,0.38428]
[1729164571061,3.2078,2603.0,2602.9,4.22588]
[1729164571250,0.38425,2603.2,2603.1,0.38424]
[1729164572451,3.2078,2603.7,2603.1,3.8416]
[1729164572648,0.38413,2603.9,2603.8,0.38413]
[1729164572852,3.2078,2604.0,2603.9,0.38413]
[1729164573451,3.59192,2604.0,2603.9,0.38413]
[1729164573852,3.2078,2604.0,2603.9,0.38413]
[1729164574259,0.38411,2604.1,2604.0,0.38412]
[1729164574953,0.38412,2604.0,2603.9,0.38412]
[1729164575152,0.38413,2603.9,2603.8,0.3953]
[1729164575351,0.38413,2603.9,2603.8,0.77945]
[1729164575851,0.38419,2603.6,2603.5,0.38418]
[1729164576254,3.2078,2603.8,2603.5,0.38418]
[1729164576461,0.38417,2603.6,2603.5,0.38418]
[1729164577454,3.2078,2603.8,2603.3,0.3885]
[1729164577656,0.96023,2604.2,2603.3,0.3885]
[1729164577657,3.2078,2604.1,2603.3,0.3885]
[1729164577964,0.38414,2603.9,2603.8,0.38413]
[1729164578656,3.69,2604.3,2603.5,0.96048]
[1729164578861,3.69,2604.3,2603.9,0.38411]
[1729164578862,0.38413,2604.0,2603.9,0.38411]
[1729164579764,3.59186,2604.4,2604.3,0.38407]
[1729164582364,0.38406,2604.4,2604.3,0.38407]
[1729164582559,0.38405,2604.5,2604.4,0.38404]
[1729164583070,0.38407,2604.4,2604.3,0.38405]
[1729164583763,0.38405,2604.5,2604.4,0.38404]
[1729164585162,0.95997,2604.9,2604.0,0.4188]
[1729164585163,3.2078,2604.9,2604.5,0.38404]
[1729164585466,3.2078,2604.9,2604.8,0.38398]
[1729164585467,0.384,2604.9,2604.8,0.38398]
[1729164586167,4.2232,2604.9,2604.8,0.38398]
[1729164586361,4.2232,2604.9,2604.6,0.4242]
[1729164586362,0.38401,2604.8,2604.7,0.384]
[1729164586968,3.2078,2604.9,2604.6,0.4242]
[1729164586969,0.38401,2604.7,2604.6,0.80822]
[1729164587467,0.38401,2604.7,2604.6,0.4242]
[1729164588366,0.38404,2604.5,2604.4,0.38405]
[1729164589266,0.38404,2604.6,2604.5,0.38403]
[1729164589462,4.16777,2604.9,2604.4,0.38405]
[1729164589661,0.38402,2604.7,2604.6,0.38401]
[1729164590466,3.2078,2604.9,2604.3,0.96018]
[1729164590767,0.38401,2604.8,2604.7,0.384]
[1729164590960,3.59179,2604.9,2604.8,0.384]
[1729164591575,0.38401,2604.8,2604.7,0.384]
[1729164592667,0.38399,2604.9,2604.8,0.38399]
[1729164593272,0.38401,2604.8,2604.7,0.384]
[1729164595282,45.17227,2605.2,2604.4,1.36344]
[1729164595470,0.38399,2604.9,2604.8,0.38398]
[1729164597372,45.17227,2605.2,2604.4,1.36344]
[1729164597580,0.38401,2604.8,2604.7,0.384]
[1729164598864,0.9599,2605.1,2604.5,0.9601]
[1729164599068,0.384,2604.9,2604.8,0.38399]
[1729164599281,45.17227,2605.2,2604.4,1.36344]
[1729164599478,0.38401,2604.8,2604.7,0.384]
[1729164599772,45.17227,2605.2,2604.4,1.36344]
[1729164599974,0.38399,2604.9,2604.8,0.38398]
[1729164600681,0.38401,2604.8,2604.7,0.38399]
[1729164601173,0.384,2604.9,2604.8,0.38398]
[1729164601370,0.38401,2604.8,2604.7,0.384]
[1729164601775,0.9599,2605.1,2604.5,0.96011]
[1729164602075,0.384,2604.9,2604.8,0.38399]
[1729164602679,3.59174,2605.2,2605.1,0.38395]
[1729164603081,3.2078,2605.5,2605.1,0.38395]
[1729164603377,3.2078,2605.5,2605.4,0.3839]
[1729164603573,0.38389,2605.6,2605.5,0.38389]
[1729164603978,0.38389,2605.5,2605.4,0.8006]
[1729164605575,3.8384,2605.5,2605.0,0.4259]
[1729164605779,0.38395,2605.2,2604.5,3.2078]
[1729164605980,3.59183,2604.7,2604.6,0.4196]
[1729164606278,0.96012,2604.5,2603.7,4.191]
[1729164606480,0.96012,2604.5,2603.6,6.2078]
[1729164606481,0.38411,2604.1,2603.9,1.20392]
[1729164606776,0.3841,2604.1,2604.0,0.38411]
[1729164606979,3.2078,2604.4,2603.9,0.8198]
[1729164607176,0.3841,2604.1,2604.0,0.38411]
[1729164607380,3.2078,2604.4,2603.9,0.8198]
[1729164607582,0.38412,2604.0,2603.9,1.20392]
[1729164607786,4.16797,2604.4,2603.9,0.8198]
[1729164607974,0.38412,2604.1,2604.0,0.38411]
[1729164608174,3.2078,2604.4,2603.9,0.8198]
[1729164608377,0.38408,2604.3,2604.2,0.38408]
[1729164608976,3.2078,2604.4,2604.3,0.38407]
[1729164609178,3.59179,2604.9,2604.8,0.384]
[1729164609376,3.2078,2604.9,2604.8,0.384]
[1729164609570,3.59178,2604.9,2604.8,0.384]
[1729164610171,3.2078,2604.9,2604.8,0.384]
[1729164610376,3.59178,2604.9,2604.8,0.384]
[1729164610676,3.2078,2604.9,2604.7,0.3855]
[1729164610875,0.384,2604.8,2604.7,0.7695]
[1729164611376,3.59179,2604.9,2604.8,0.384]
[1729164613380,0.384,2604.8,2604.7,0.7695]
[1729164613680,0.38403,2604.7,2604.4,0.7977]
[1729164613881,0.38404,2604.6,2604.5,0.38403]
[1729164614286,0.38404,2604.5,2604.4,1.59325]
[1729164614889,0.38404,2604.5,2604.4,1.2092]
[1729164616076,0.38404,2604.6,2604.5,0.38403]
[1729164616282,0.38402,2604.7,2604.6,0.38401]
[1729164616482,0.38402,2604.7,2604.4,1.2092]
[1729164616483,3.59179,2604.9,2604.8,0.384]
[1729164617285,3.2078,2604.9,2604.8,0.384]
[1729164617491,3.59178,2604.9,2604.8,0.384]
[1729164619087,0.38398,2604.9,2604.8,0.384]
[1729164619288,3.59177,2605.0,2604.9,0.38398]
[1729164619488,3.59172,2605.3,2605.2,0.38394]
[1729164619790,0.38395,2605.2,2605.1,0.38394]
[1729164620092,3.2078,2605.3,2604.6,1.00468599]
[1729164620093,4.16762,2605.3,2604.6,1.00468599]
[1729164620288,0.38401,2604.8,2604.7,0.384]
[1729164621281,3.2078,2605.0,2604.6,0.8161]
[1729164621488,0.38401,2604.7,2604.6,1.2001]
[1729164621985,3.2078,2605.0,2604.6,0.8161]
[1729164622184,0.384,2604.9,2604.8,0.38398]
[1729164622495,3.2078,2605.0,2604.9,0.38398]
[1729164622693,3.2078,2605.0,2604.9,0.38397]
[1729164622694,0.38398,2605.0,2604.9,0.38397]
[1729164623598,0.38401,2604.8,2604.7,0.384]
[1729164624085,0.38401,2604.7,2604.6,1.20012]
[1729164624590,0.384,2604.9,2604.8,0.38398]
[1729164625295,0.38397,2605.1,2605.0,0.38396]
[1729164626704,3.59174,2605.2,2605.1,0.38395]
[1729164626996,3.2078,2605.2,2604.8,1.00468599]
[1729164627194,0.38398,2605.0,2604.9,0.38397]
[1729164627396,3.2078,2605.2,2604.6,1.82078599]
[1729164627588,0.38401,2604.7,2604.6,1.20013]
[1729164627896,0.38401,2604.7,2604.6,0.8161]
[1729164628091,0.38401,2604.8,2604.7,0.38399]
[1729164629404,0.38398,2605.0,2604.9,0.38397]
[1729164630090,3.2078,2605.2,2604.7,3.69]
[1729164630291,0.38401,2604.8,2604.7,0.38399]
[1729164630493,0.38401,2604.7,2604.6,1.2001]
[1729164630691,0.38401,2604.8,2604.7,0.38399]
[1729164631904,0.38399,2605.0,2604.9,0.38397]
[1729164632700,3.2078,2605.2,2604.7,4.1]
[1729164633200,0.38399,2605.0,2604.9,0.38397]
[1729164633400,3.2078,2605.2,2604.7,0.41]
[1729164633600,3.5918,2604.8,2604.7,0.41]
[1729164633799,0.38406,2604.4,2604.2,1.00468599]
[1729164634002,0.38406,2604.4,2604.3,1.21057]
[1729164636001,0.38406,2604.4,2604.3,0.8265]
[1729164636299,0.38406,2604.4,2603.9,1.00468599]
[1729164636300,3.84,2604.4,2603.9,0.38412]
[1729164636498,0.3841,2604.1,2604.0,0.4065]
[1729164640199,0.3841,2604.1,2604.0,0.79062]
[1729164640400,0.3841,2604.2,2604.1,0.3841]
[1729164640908,0.38408,2604.3,2604.2,0.38408]
[1729164641111,4.16789,2604.6,2604.0,0.4065]
[1729164641304,0.38409,2604.2,2604.1,0.38409]
[1729164641807,3.2078,2604.6,2604.0,3.4065]
[1729164642009,3.2078,2604.6,2604.2,3.0]
[1729164642203,0.38406,2604.4,2604.3,0.80077]
[1729164642397,0.38406,2604.4,2604.3,1.21107]
[1729164642605,3.2078,2604.6,2604.3,0.827]
[1729164642911,0.38405,2604.5,2604.4,0.38404]
[1729164643299,3.2078,2604.6,2604.3,0.827]
[1729164643501,0.38406,2604.4,2604.3,0.827]
[1729164643705,0.38409,2604.2,2604.1,0.3841]
[1729164643905,0.38408,2604.3,2604.2,0.38408]
[1729164644107,0.38409,2604.2,2604.1,0.38409]
[1729164644307,0.3841,2604.1,2604.0,0.7906]
[1729164644501,0.3841,2604.1,2604.0,0.4065]
[1729164645300,3.2078,2604.3,2604.0,0.4065]